[Event "Live Chess"]
[Site "Chess.com"]
[Date "2024.06.02"]
[Round "-"]
[White "juniortay"]
[Black "peteopeteo"]
[Result "1-0"]
[WhiteElo "2380"]
[BlackElo "1540"]
[TimeControl "300"]
[EndTime "0:28:04 PDT"]
[Termination "juniortay won by checkmate"]

1. e4 {[%clk 0:04:58.8]} 1... c6 {[%clk 0:04:57.9]} 2. Nf3 {[%clk 0:04:57.5]}
2... d5 {[%clk 0:04:57.2]} 3. exd5 {[%clk 0:04:56.7]} 3... cxd5 {[%clk
0:04:57.1]} 4. Ne5 {[%clk 0:04:54.6]} 4... Nf6 {[%clk 0:04:57]} 5. d4 {[%clk
0:04:52.9]} 5... Nbd7 {[%clk 0:04:55.6]} 6. Bd3 {[%clk 0:04:51.7]} 6... Nxe5
{[%clk 0:04:50.6]} 7. dxe5 {[%clk 0:04:50.7]} 7... Nd7 {[%clk 0:04:49.7]} 8. Qe2
{[%clk 0:04:49.6]} 8... e6 {[%clk 0:04:47.6]} 9. O-O {[%clk 0:04:48.2]} 9... Qc7
{[%clk 0:04:46.8]} 10. Re1 {[%clk 0:04:45]} 10... Bc5 {[%clk 0:04:44.2]} 11. c3
{[%clk 0:04:43.8]} 11... Qb6 {[%clk 0:04:43.5]} 12. Nd2 {[%clk 0:04:41.5]} 12...
O-O {[%clk 0:04:35.3]} 13. Nf3 {[%clk 0:04:40]} 13... Qc7 {[%clk 0:04:26.4]} 14.
Bxh7+ {[%clk 0:04:26.8]} 14... Kh8 {[%clk 0:04:19.7]} 15. Ng5 {[%clk 0:04:25.5]}
15... Be7 {[%clk 0:04:12.5]} 16. Qh5 {[%clk 0:04:23.1]} 16... Bxg5 {[%clk
0:04:07.1]} 17. Bxg5 {[%clk 0:04:21.6]} 17... g6 {[%clk 0:03:51.8]} 18. Bxg6+
{[%clk 0:04:19.4]} 18... Kg7 {[%clk 0:03:51.7]} 19. Qh7# {[%clk 0:04:17.1]} 1-0

[Event "Live Chess"]
[Site "Chess.com"]
[Date "2024.06.02"]
[Round "-"]
[White "JanMur7"]
[Black "WilliamofOrange16th"]
[Result "0-1"]
[WhiteElo "2258"]
[BlackElo "1984"]
[TimeControl "300"]
[EndTime "0:28:28 PDT"]
[Termination "WilliamofOrange16th won on time"]

1. c4 {[%clk 0:04:57.5]} 1... e5 {[%clk 0:04:58.7]} 2. Nc3 {[%clk 0:04:53]} 2...
Nc6 {[%clk 0:04:57.9]} 3. Nf3 {[%clk 0:04:51.6]} 3... f5 {[%clk 0:04:57.4]} 4.
d4 {[%clk 0:04:49.3]} 4... e4 {[%clk 0:04:56.9]} 5. d5 {[%clk 0:04:47.5]} 5...
exf3 {[%clk 0:04:48.9]} 6. dxc6 {[%clk 0:04:46.6]} 6... dxc6 {[%clk 0:04:45.5]}
7. Qxd8+ {[%clk 0:04:43.6]} 7... Kxd8 {[%clk 0:04:45.4]} 8. gxf3 {[%clk
0:04:37.9]} 8... Bb4 {[%clk 0:04:26.8]} 9. Bg5+ {[%clk 0:04:33.5]} 9... Ne7
{[%clk 0:04:20.3]} 10. O-O-O+ {[%clk 0:04:32.4]} 10... Ke8 {[%clk 0:04:19.8]}
11. Rg1 {[%clk 0:04:27.9]} 11... Be6 {[%clk 0:04:11.9]} 12. e3 {[%clk
0:04:21.3]} 12... g6 {[%clk 0:04:08.7]} 13. a3 {[%clk 0:04:14.4]} 13... Bd6
{[%clk 0:04:05.6]} 14. b4 {[%clk 0:04:03.3]} 14... h6 {[%clk 0:03:58.8]} 15. Bf6
{[%clk 0:03:58.7]} 15... Rf8 {[%clk 0:03:56.6]} 16. Bg7 {[%clk 0:03:57.7]} 16...
Rg8 {[%clk 0:03:55.5]} 17. Bxh6 {[%clk 0:03:54.6]} 17... Kf7 {[%clk 0:03:54.3]}
18. h4 {[%clk 0:03:44]} 18... a5 {[%clk 0:03:44.3]} 19. c5 {[%clk 0:03:38.8]}
19... Be5 {[%clk 0:03:43.2]} 20. Nb1 {[%clk 0:02:58.3]} 20... axb4 {[%clk
0:03:36.5]} 21. axb4 {[%clk 0:02:56.4]} 21... Ra1 {[%clk 0:03:32.6]} 22. f4
{[%clk 0:02:52.4]} 22... Bh8 {[%clk 0:03:27.1]} 23. h5 {[%clk 0:02:26.4]} 23...
Bb3 {[%clk 0:02:50]} 24. hxg6+ {[%clk 0:02:18.9]} 24... Nxg6 {[%clk 0:02:48.4]}
25. Rd2 {[%clk 0:02:01.7]} 25... Rga8 {[%clk 0:02:30.4]} 26. Be2 {[%clk
0:01:45.1]} 26... Ba2 {[%clk 0:02:03.7]} 27. Rxa2 {[%clk 0:00:53.1]} 27... R8xa2
{[%clk 0:01:46.8]} 28. Bc4+ {[%clk 0:00:53]} 28... Kf6 {[%clk 0:01:40.8]} 29.
Bxa2 {[%clk 0:00:52.9]} 29... Rxa2 {[%clk 0:01:39.7]} 30. f3 {[%clk 0:00:50.7]}
30... Kf7 {[%clk 0:01:33.6]} 31. e4 {[%clk 0:00:46.5]} 31... fxe4 {[%clk
0:01:30]} 32. fxe4 {[%clk 0:00:46.4]} 32... Rf2 {[%clk 0:01:21.7]} 33. f5 {[%clk
0:00:39.7]} 33... Nf4 {[%clk 0:01:18.2]} 34. Bxf4 {[%clk 0:00:37.7]} 34... Rxf4
{[%clk 0:01:16.8]} 35. Re1 {[%clk 0:00:33.3]} 35... Be5 {[%clk 0:01:10.4]} 36.
Kc2 {[%clk 0:00:28.3]} 36... Rf2+ {[%clk 0:01:08.3]} 37. Kd3 {[%clk 0:00:26.6]}
37... Rb2 {[%clk 0:01:05.8]} 38. Kc4 {[%clk 0:00:22.9]} 38... Rc2+ {[%clk
0:01:02.8]} 39. Kb3 {[%clk 0:00:22]} 39... Rb2+ {[%clk 0:00:55.6]} 40. Kc4
{[%clk 0:00:21.1]} 40... Rc2+ {[%clk 0:00:54.6]} 41. Kd3 {[%clk 0:00:20]} 41...
Rb2 {[%clk 0:00:52.8]} 42. Nd2 {[%clk 0:00:17.7]} 42... Rxb4 {[%clk 0:00:49.6]}
43. Rh1 {[%clk 0:00:16]} 43... Rb5 {[%clk 0:00:39]} 44. Nf3 {[%clk 0:00:13.6]}
44... Rb3+ {[%clk 0:00:35.5]} 45. Ke2 {[%clk 0:00:12.3]} 45... Bg7 {[%clk
0:00:33.9]} 46. e5 {[%clk 0:00:10.3]} 46... Rc3 {[%clk 0:00:30.7]} 47. e6+
{[%clk 0:00:09.5]} 47... Kf6 {[%clk 0:00:28.4]} 48. Rg1 {[%clk 0:00:08.6]} 48...
Bf8 {[%clk 0:00:23]} 49. Nd4 {[%clk 0:00:06.2]} 49... Rxc5 {[%clk 0:00:21.5]}
50. Rg6+ {[%clk 0:00:05]} 50... Ke5 {[%clk 0:00:20.7]} 51. f6 {[%clk 0:00:03.8]}
51... Kxd4 {[%clk 0:00:19.1]} 52. e7 {[%clk 0:00:03.6]} 52... Re5+ {[%clk
0:00:17.5]} 53. Kd2 {[%clk 0:00:03]} 53... Bxe7 {[%clk 0:00:17.4]} 54. fxe7
{[%clk 0:00:02]} 54... Rxe7 {[%clk 0:00:15.7]} 55. Rg4+ {[%clk 0:00:01.9]} 55...
Re4 {[%clk 0:00:14.8]} 56. Rg5 {[%clk 0:00:01.8]} 56... c5 {[%clk 0:00:13.7]}
57. Rg8 {[%clk 0:00:01.7]} 57... c4 {[%clk 0:00:12.7]} 58. Rd8+ {[%clk
0:00:01.6]} 58... Kc5 {[%clk 0:00:11.4]} 59. Rc8 {[%clk 0:00:01.5]} 59... Kc6
{[%clk 0:00:10.4]} 60. Rh8 {[%clk 0:00:01.1]} 60... b5 {[%clk 0:00:10.3]} 61.
Rh6+ {[%clk 0:00:00.9]} 61... Kc5 {[%clk 0:00:09.7]} 62. Rh5+ {[%clk 0:00:00.8]}
62... Kb4 {[%clk 0:00:09.1]} 63. Rg5 {[%clk 0:00:00.3]} 63... c3+ {[%clk
0:00:09]} 0-1

[Event "Live Chess"]
[Site "Chess.com"]
[Date "2024.06.02"]
[Round "-"]
[White "RichardABates"]
[Black "hapehansen"]
[Result "1-0"]
[WhiteElo "2362"]
[BlackElo "2250"]
[TimeControl "300"]
[EndTime "0:28:59 PDT"]
[Termination "RichardABates won by resignation"]

1. d4 {[%clk 0:04:55.7]} 1... Nf6 {[%clk 0:04:58.4]} 2. Nf3 {[%clk 0:04:54]}
2... e6 {[%clk 0:04:57.2]} 3. c4 {[%clk 0:04:52.4]} 3... d5 {[%clk 0:04:54.8]}
4. g3 {[%clk 0:04:50.7]} 4... Be7 {[%clk 0:04:51.1]} 5. Bg2 {[%clk 0:04:48.3]}
5... O-O {[%clk 0:04:50.7]} 6. O-O {[%clk 0:04:44.1]} 6... c6 {[%clk 0:04:49.3]}
7. Qc2 {[%clk 0:04:42.4]} 7... b6 {[%clk 0:04:45]} 8. Nbd2 {[%clk 0:04:40.4]}
8... Bb7 {[%clk 0:04:40.7]} 9. b3 {[%clk 0:04:38.7]} 9... Nbd7 {[%clk
0:04:14.6]} 10. Bb2 {[%clk 0:04:36.8]} 10... Qc7 {[%clk 0:04:01.2]} 11. Rac1
{[%clk 0:04:30.7]} 11... Rac8 {[%clk 0:03:59.1]} 12. e4 {[%clk 0:04:26.8]} 12...
dxe4 {[%clk 0:03:56.7]} 13. Nxe4 {[%clk 0:04:23.9]} 13... Nxe4 {[%clk
0:03:49.5]} 14. Qxe4 {[%clk 0:04:20.5]} 14... Nf6 {[%clk 0:03:42.6]} 15. Qe2
{[%clk 0:04:12.1]} 15... c5 {[%clk 0:03:40.3]} 16. Rfe1 {[%clk 0:04:06.9]} 16...
cxd4 {[%clk 0:03:35.6]} 17. Nxd4 {[%clk 0:04:04.3]} 17... Bxg2 {[%clk
0:03:34.1]} 18. Kxg2 {[%clk 0:04:03.2]} 18... Rfd8 {[%clk 0:03:28.2]} 19. Nb5
{[%clk 0:03:57.9]} 19... Qb7+ {[%clk 0:03:23.8]} 20. Qf3 {[%clk 0:03:56.4]}
20... Qxf3+ {[%clk 0:03:21.4]} 21. Kxf3 {[%clk 0:03:55.1]} 21... a6 {[%clk
0:03:17.6]} 22. Nc3 {[%clk 0:03:48.2]} 22... h5 {[%clk 0:02:54]} 23. h3 {[%clk
0:03:45.3]} 23... Nd7 {[%clk 0:02:36]} 24. Red1 {[%clk 0:03:41.4]} 24... Ne5+
{[%clk 0:02:22.7]} 25. Ke2 {[%clk 0:03:39.5]} 25... Nc6 {[%clk 0:02:15.3]} 26.
Na4 {[%clk 0:03:36.5]} 26... Rxd1 {[%clk 0:02:10]} 27. Rxd1 {[%clk 0:03:33.2]}
27... b5 {[%clk 0:02:07.4]} 28. cxb5 {[%clk 0:03:06.9]} 28... axb5 {[%clk
0:02:05.4]} 29. Nb6 {[%clk 0:03:04.8]} 29... Rc7 {[%clk 0:01:56.5]} 30. Rd7
{[%clk 0:02:56.8]} 30... Rxd7 {[%clk 0:01:49.5]} 31. Nxd7 {[%clk 0:02:55.3]}
31... b4 {[%clk 0:01:35.9]} 32. Ne5 {[%clk 0:02:51.7]} 32... Nxe5 {[%clk
0:01:26.8]} 33. Bxe5 {[%clk 0:02:49.9]} 33... Bc5 {[%clk 0:01:26.4]} 34. f3
{[%clk 0:02:47.3]} 34... f6 {[%clk 0:01:23.5]} 35. Bf4 {[%clk 0:02:37.8]} 35...
Kf7 {[%clk 0:01:18.1]} 36. Kd3 {[%clk 0:02:36.3]} 36... e5 {[%clk 0:01:12.7]}
37. Bd2 {[%clk 0:02:34.7]} 37... Ke6 {[%clk 0:01:07.8]} 38. Kc4 {[%clk
0:02:33.1]} 38... g5 {[%clk 0:01:00.5]} 39. g4 {[%clk 0:02:31.2]} 39... hxg4
{[%clk 0:00:49.2]} 40. hxg4 {[%clk 0:02:29.2]} 40... Bd6 {[%clk 0:00:46]} 41.
Bxb4 {[%clk 0:02:26.6]} 41... Bxb4 {[%clk 0:00:44.9]} 42. Kxb4 {[%clk
0:02:25.4]} 42... f5 {[%clk 0:00:44.6]} 43. Kc3 {[%clk 0:02:18.2]} 1-0

[Event "Live Chess"]
[Site "Chess.com"]
[Date "2024.06.02"]
[Round "-"]
[White "f4nomore"]
[Black "Ksenia_2013"]
[Result "1-0"]
[WhiteElo "1252"]
[BlackElo "947"]
[TimeControl "300"]
[EndTime "0:29:32 PDT"]
[Termination "f4nomore won by checkmate"]

1. b3 {[%clk 0:04:54.7]} 1... Nf6 {[%clk 0:04:56.7]} 2. Bb2 {[%clk 0:04:53.3]}
2... g6 {[%clk 0:04:55.8]} 3. e3 {[%clk 0:04:52.2]} 3... Bg7 {[%clk 0:04:54.6]}
4. f4 {[%clk 0:04:51]} 4... O-O {[%clk 0:04:51.6]} 5. Nf3 {[%clk 0:04:49.8]}
5... Nc6 {[%clk 0:04:49.2]} 6. Be2 {[%clk 0:04:48.7]} 6... d6 {[%clk 0:04:47.9]}
7. O-O {[%clk 0:04:47.4]} 7... Bg4 {[%clk 0:04:46.1]} 8. Nc3 {[%clk 0:04:44.7]}
8... Ne4 {[%clk 0:04:37.7]} 9. Rb1 {[%clk 0:04:41.9]} 9... Nxc3 {[%clk
0:04:34.8]} 10. dxc3 {[%clk 0:04:36.9]} 10... e5 {[%clk 0:04:26.1]} 11. h3
{[%clk 0:04:31.1]} 11... Bxh3 {[%clk 0:04:16.1]} 12. gxh3 {[%clk 0:04:27.9]}
12... exf4 {[%clk 0:04:14.4]} 13. exf4 {[%clk 0:04:23.6]} 13... Qf6 {[%clk
0:04:08.5]} 14. Nh2 {[%clk 0:04:18.8]} 14... Bh6 {[%clk 0:03:59.7]} 15. c4
{[%clk 0:04:16.3]} 15... Qh4 {[%clk 0:03:53.7]} 16. Rf3 {[%clk 0:03:48.2]} 16...
Bxf4 {[%clk 0:03:47.6]} 17. Qf1 {[%clk 0:03:39.6]} 17... Bxh2+ {[%clk
0:03:39.2]} 18. Kxh2 {[%clk 0:03:36.5]} 18... Rfe8 {[%clk 0:03:36.6]} 19. Bd3
{[%clk 0:03:30.9]} 19... Re7 {[%clk 0:03:34.4]} 20. Bf6 {[%clk 0:03:17]} 20...
Qh5 {[%clk 0:02:59.2]} 21. Bxe7 {[%clk 0:03:13.1]} 21... Nxe7 {[%clk 0:02:57.4]}
22. Rxf7 {[%clk 0:03:01.6]} 22... Qe5+ {[%clk 0:02:44.7]} 23. Qf4 {[%clk
0:02:41.7]} 23... Qxf4+ {[%clk 0:02:32.7]} 24. Rxf4 {[%clk 0:02:39.5]} 24... Rf8
{[%clk 0:02:30]} 25. Rxf8+ {[%clk 0:02:37.7]} 25... Kxf8 {[%clk 0:02:27.7]} 26.
Rf1+ {[%clk 0:02:35]} 26... Kg8 {[%clk 0:02:25.6]} 27. Be4 {[%clk 0:02:26.1]}
27... c6 {[%clk 0:02:19]} 28. b4 {[%clk 0:02:23.2]} 28... d5 {[%clk 0:02:16.7]}
29. cxd5 {[%clk 0:02:20.3]} 29... cxd5 {[%clk 0:02:14.8]} 30. Bd3 {[%clk
0:02:18.9]} 30... Nf5 {[%clk 0:02:10.8]} 31. Re1 {[%clk 0:02:15.8]} 31... b6
{[%clk 0:02:02.8]} 32. Re6 {[%clk 0:02:13.2]} 32... Ng7 {[%clk 0:02:00.3]} 33.
Re7 {[%clk 0:02:06.9]} 33... Kf8 {[%clk 0:01:54.9]} 34. Rxa7 {[%clk 0:02:04.7]}
34... h5 {[%clk 0:01:50.2]} 35. Rb7 {[%clk 0:02:02.4]} 35... g5 {[%clk
0:01:46.7]} 36. Rxb6 {[%clk 0:01:59.8]} 36... g4 {[%clk 0:01:44.7]} 37. hxg4
{[%clk 0:01:56.5]} 37... hxg4 {[%clk 0:01:43.4]} 38. Rg6 {[%clk 0:01:49.6]}
38... Kf7 {[%clk 0:01:39.1]} 39. Rxg4 {[%clk 0:01:47]} 39... Nh5 {[%clk
0:01:35.5]} 40. a4 {[%clk 0:01:42.5]} 40... Nf6 {[%clk 0:01:31.3]} 41. Rf4
{[%clk 0:01:36.6]} 41... d4 {[%clk 0:01:27.9]} 42. Rxd4 {[%clk 0:01:31.8]} 42...
Ke6 {[%clk 0:01:26.5]} 43. c3 {[%clk 0:01:23.5]} 43... Ke5 {[%clk 0:01:24.7]}
44. b5 {[%clk 0:01:16.9]} 44... Nd7 {[%clk 0:01:18.3]} 45. Rxd7 {[%clk 0:01:12]}
45... Ke6 {[%clk 0:01:16.2]} 46. Rd4 {[%clk 0:01:09.8]} 46... Ke5 {[%clk
0:01:14.9]} 47. b6 {[%clk 0:01:08.9]} 47... Ke6 {[%clk 0:01:12.5]} 48. b7 {[%clk
0:01:08]} 48... Ke7 {[%clk 0:01:07.9]} 49. b8=Q {[%clk 0:01:05.7]} 49... Ke6
{[%clk 0:01:05.7]} 50. Qb5 {[%clk 0:00:57.1]} 50... Kf6 {[%clk 0:01:03.9]} 51.
Rc4 {[%clk 0:00:54.7]} 51... Ke6 {[%clk 0:01:02.3]} 52. Rc6+ {[%clk 0:00:52.8]}
52... Ke7 {[%clk 0:01:00.9]} 53. Qb7+ {[%clk 0:00:51.6]} 53... Ke8 {[%clk
0:00:59.6]} 54. Rc8# {[%clk 0:00:50.5]} 1-0

[Event "Live Chess"]
[Site "Chess.com"]
[Date "2024.06.02"]
[Round "-"]
[White "WeakOldFinished"]
[Black "NAZRIZ1977"]
[Result "0-1"]
[WhiteElo "2144"]
[BlackElo "2127"]
[TimeControl "300"]
[EndTime "0:29:49 PDT"]
[Termination "NAZRIZ1977 won - game abandoned"]

1. e4 {[%clk 0:04:57.2]} 1... c5 {[%clk 0:04:59.1]} 2. Nc3 {[%clk 0:04:55.2]}
2... Nc6 {[%clk 0:04:58.2]} 3. f4 {[%clk 0:04:53.7]} 3... g6 {[%clk 0:04:57.2]}
4. Nf3 {[%clk 0:04:53]} 4... Bg7 {[%clk 0:04:56.3]} 5. Bc4 {[%clk 0:04:52.6]}
5... e6 {[%clk 0:04:55.2]} 6. f5 {[%clk 0:04:51.9]} 6... Nge7 {[%clk 0:04:54.1]}
7. fxe6 {[%clk 0:04:49.7]} 7... fxe6 {[%clk 0:04:53]} 8. O-O {[%clk 0:04:49]}
8... O-O {[%clk 0:04:52.2]} 9. d3 {[%clk 0:04:47.6]} 9... d5 {[%clk 0:04:51.2]}
10. Bb3 {[%clk 0:04:47]} 10... Nd4 {[%clk 0:04:50.3]} 11. exd5 {[%clk 0:04:39]}
11... exd5 {[%clk 0:04:43]} 12. Bg5 {[%clk 0:04:37.4]} 12... Nxb3 {[%clk
0:04:41.6]} 13. axb3 {[%clk 0:04:36.1]} 13... Bf6 {[%clk 0:04:35.3]} 14. Qd2
{[%clk 0:04:28.6]} 14... Bd7 {[%clk 0:03:50.7]} 15. Bxf6 {[%clk 0:04:22.2]}
15... Rxf6 {[%clk 0:03:49.6]} 16. Ne5 {[%clk 0:04:20.5]} 16... Rxf1+ {[%clk
0:03:45.2]} 17. Rxf1 {[%clk 0:04:20.4]} 17... Be6 {[%clk 0:03:43.4]} 18. Qf4
{[%clk 0:04:01.5]} 18... Qf8 {[%clk 0:03:36.6]} 19. Qe3 {[%clk 0:03:52.6]} 19...
Nf5 {[%clk 0:03:29.5]} 20. Qg5 {[%clk 0:03:39.1]} 20... Qg7 {[%clk 0:03:24]} 21.
Ng4 {[%clk 0:03:34.6]} 21... Rf8 {[%clk 0:03:07.2]} 22. Qf4 {[%clk 0:03:20.4]}
22... Qd4+ {[%clk 0:02:53.6]} 23. Qxd4 {[%clk 0:03:15.9]} 23... Nxd4 {[%clk
0:02:52.3]} 24. Rxf8+ {[%clk 0:03:15.1]} 24... Kxf8 {[%clk 0:02:51.1]} 25. Ne3
{[%clk 0:03:15]} 25... Nxb3 {[%clk 0:02:38.6]} 26. Ncxd5 {[%clk 0:02:51.3]}
26... Bxd5 {[%clk 0:02:32.6]} 27. Nxd5 {[%clk 0:02:50.4]} 27... Nd4 {[%clk
0:02:32.2]} 28. c3 {[%clk 0:02:48.7]} 28... Nc6 {[%clk 0:02:24.6]} 29. Kf2
{[%clk 0:02:46.8]} 29... Kf7 {[%clk 0:02:22.8]} 30. Ke3 {[%clk 0:02:45.9]} 30...
Ke6 {[%clk 0:02:21.6]} 31. Nf4+ {[%clk 0:02:41.9]} 31... Kf5 {[%clk 0:02:20.3]}
32. h3 {[%clk 0:02:39.3]} 32... h5 {[%clk 0:02:16.4]} 33. Nd5 {[%clk 0:02:35.3]}
33... b5 {[%clk 0:02:10]} 34. d4 {[%clk 0:02:34.2]} 34... cxd4+ {[%clk
0:02:05.1]} 35. cxd4 {[%clk 0:02:34.1]} 35... a5 {[%clk 0:02:04.3]} 36. Nc7
{[%clk 0:02:25.5]} 36... b4 {[%clk 0:02:00.2]} 37. d5 {[%clk 0:02:23.2]} 37...
Ne5 {[%clk 0:01:58.7]} 38. Kd4 {[%clk 0:02:21.1]} 38... a4 {[%clk 0:01:54.8]}
39. Nb5 {[%clk 0:02:14]} 39... Kf6 {[%clk 0:01:45.9]} 40. Kc5 {[%clk 0:02:04.6]}
40... Nd3+ {[%clk 0:01:41]} 41. Kc4 {[%clk 0:02:02.3]} 41... Nxb2+ {[%clk
0:01:26.9]} 42. Kxb4 {[%clk 0:02:01.5]} 42... Ke5 {[%clk 0:01:07.2]} 43. d6
{[%clk 0:01:59.8]} 43... Ke6 {[%clk 0:00:59.3]} 44. Ka3 {[%clk 0:01:58.3]} 44...
Nc4+ {[%clk 0:00:57.1]} 45. Kxa4 {[%clk 0:01:57.5]} 45... Nxd6 {[%clk 0:00:57]}
46. Nd4+ {[%clk 0:01:52.9]} 46... Ke5 {[%clk 0:00:53.2]} 47. Ne2 {[%clk
0:01:50.8]} 47... Ke4 {[%clk 0:00:49.7]} 48. Kb4 {[%clk 0:01:45.8]} 48... Ke3
{[%clk 0:00:48.5]} 49. Nc3 {[%clk 0:01:38.6]} 49... Kf2 {[%clk 0:00:46.5]} 50.
g4 {[%clk 0:01:37.3]} 50... h4 {[%clk 0:00:37.8]} 51. Kc5 {[%clk 0:01:36.5]}
51... Kg3 {[%clk 0:00:28.8]} 52. Kxd6 {[%clk 0:01:35]} 52... Kxh3 {[%clk
0:00:28.3]} 53. g5 {[%clk 0:01:33.7]} 53... Kg4 {[%clk 0:00:27.7]} 54. Ne4
{[%clk 0:01:32.1]} 54... Kf5 {[%clk 0:00:23.8]} 55. Kd5 {[%clk 0:01:29.4]} 55...
h3 {[%clk 0:00:23]} 56. Kd4 {[%clk 0:01:28.2]} 56... Kf4 {[%clk 0:00:20.3]} 57.
Nf2 {[%clk 0:01:15.2]} 57... Kg3 {[%clk 0:00:18.3]} 58. Nxh3 {[%clk 0:01:09.6]}
58... Kxh3 {[%clk 0:00:16.3]} 59. Ke4 {[%clk 0:01:08.9]} 59... Kg4 {[%clk
0:00:14.6]} 60. Ke3 {[%clk 0:01:03.2]} 60... Kxg5 {[%clk 0:00:14.5]} 61. Kf2
{[%clk 0:01:02.3]} 61... Kh4 {[%clk 0:00:14.1]} 62. Kg2 {[%clk 0:01:01.5]} 62...
Kg4 {[%clk 0:00:13.7]} 63. Kh2 {[%clk 0:01:00.1]} 63... Kf3 {[%clk 0:00:13.1]}
64. Kh3 {[%clk 0:00:57.5]} 64... g5 {[%clk 0:00:13]} 65. Kh2 {[%clk 0:00:57.1]}
65... g4 {[%clk 0:00:12.1]} 66. Kg1 {[%clk 0:00:57]} 66... Kg3 {[%clk
0:00:11.6]} 67. Kh1 {[%clk 0:00:55.8]} 67... Kf2 {[%clk 0:00:11.1]} 68. Kh2
{[%clk 0:00:55.2]} 68... g3+ {[%clk 0:00:11]} 69. Kh3 {[%clk 0:00:55.1]} 69...
g2 {[%clk 0:00:10.9]} 70. Kg4 {[%clk 0:00:55]} 70... g1=Q+ {[%clk 0:00:09.9]}
71. Kf4 {[%clk 0:00:54.9]} 71... Ke2 {[%clk 0:00:09.8]} 0-1

[Event "Live Chess"]
[Site "Chess.com"]
[Date "2024.06.02"]
[Round "-"]
[White "SimonBoy1"]
[Black "elephantgerrald"]
[Result "1-0"]
[WhiteElo "1530"]
[BlackElo "822"]
[TimeControl "300"]
[EndTime "0:30:15 PDT"]
[Termination "SimonBoy1 won by checkmate"]

1. e4 {[%clk 0:04:59.2]} 1... e5 {[%clk 0:04:57.9]} 2. Nf3 {[%clk 0:04:58.7]}
2... Nc6 {[%clk 0:04:54.9]} 3. Bc4 {[%clk 0:04:57.5]} 3... Nf6 {[%clk
0:04:53.2]} 4. d3 {[%clk 0:04:56.7]} 4... Bc5 {[%clk 0:04:51.6]} 5. O-O {[%clk
0:04:56.2]} 5... O-O {[%clk 0:04:49.5]} 6. c3 {[%clk 0:04:55.7]} 6... d6 {[%clk
0:04:48]} 7. h3 {[%clk 0:04:51.9]} 7... h6 {[%clk 0:04:46.4]} 8. a4 {[%clk
0:04:49.1]} 8... Bxh3 {[%clk 0:04:44.5]} 9. gxh3 {[%clk 0:04:47.3]} 9... Qd7
{[%clk 0:04:43.3]} 10. Kh2 {[%clk 0:04:33.1]} 10... Nh5 {[%clk 0:04:39.2]} 11.
Nh4 {[%clk 0:04:28.2]} 11... Na5 {[%clk 0:04:20.9]} 12. Qxh5 {[%clk 0:04:25.8]}
12... Nxc4 {[%clk 0:04:14.4]} 13. dxc4 {[%clk 0:04:25.7]} 13... Qe6 {[%clk
0:04:04.4]} 14. Nf5 {[%clk 0:04:06.9]} 14... Qxc4 {[%clk 0:03:52.7]} 15. Rg1
{[%clk 0:04:04.6]} 15... Bxf2 {[%clk 0:03:39.7]} 16. Rxg7+ {[%clk 0:04:00.7]}
16... Kh8 {[%clk 0:03:35.4]} 17. Qxh6# {[%clk 0:04:00.3]} 1-0